{"text_format":"1","workbook":"xlsx","n_sheets":15,"sheets":["Site Info","Objectives","Waste Forecast - Dem","Waste Estimator DEM","Waste Forecast - Exc","Waste Forecast - Con","Waste Estimator CON","TC WMP","Site Management","Actual Waste - Dem","Actual Waste - Exc","Actual Waste - Con","Actual Waste - ALL","References","Review"],"not_rendered":{"charts":6,"images":2,"macros":1,"external_links":1,"defined_names":25,"comments":8,"pivot_tables":0},"unopened":[],"bounds":{"document_bytes":16777216,"sheet_cells":100000,"rows_first":2000,"rows_last":500,"rows_between":2000,"halvings":0,"cell_chars":16384,"cell_head_chars":4096},"cells_cut":0,"cells_raw":0,"read":"whole","date_system":"1900"}

{"sheet":"Site Info","index":0,"n_rows":31,"n_cols":13,"rows_kept":31,"cut":false,"hidden":false,"merged":[[4,8,4,9],[15,11,15,13],[4,10,4,13],[8,10,8,13],[13,7,13,8],[9,10,9,13],[10,10,10,13],[5,10,7,13],[13,1,13,2],[11,8,11,9],[16,1,16,9],[15,1,15,3],[15,4,15,6],[15,8,15,10],[5,3,7,6],[8,8,8,9],[9,8,9,9],[10,8,10,9],[5,8,7,9],[29,3,29,5],[30,3,30,5],[29,9,29,11],[30,9,30,11],[4,1,4,2],[5,1,7,2],[4,3,4,6],[9,3,9,6],[8,1,8,2],[8,3,8,6],[14,1,14,13],[13,3,13,4],[13,5,13,6],[19,1,19,2],[19,10,19,13],[9,1,9,2],[25,1,25,13],[26,1,26,13],[22,8,22,9],[18,1,18,2],[11,10,11,13],[22,1,22,2],[22,10,22,13],[18,8,18,9],[19,8,19,9],[21,3,21,6],[19,3,19,6],[22,3,22,6],[21,1,21,2],[18,3,18,6],[21,8,21,9],[21,10,21,13]]}
["swmp"]
["Site Waste Management Plan (SWMP)"]
[]
[null,"Site information"]
[null,"Project name:",null,"St Gilles Circus ",null,null,null,null,"Main Contractor name:",null,"Skanska"]
[null,"Site Address:",null,"23 Denmark Street, London, WC2H 8NP",null,null,null,null,"Main Contractor Address:",null,"120 Aldersgate Street, London, EC1A 4JQ"]
[]
[]
[null,"Project Start date: ",null,"2016-02-01",null,null,null,null,"Prepared by:",null,"Jo Delahunty"]
[null,"Client:",null,"Consolidated Developments",null,null,null,null,"Job title:",null,"DC/Environmental Co-ordinator"]
[null,null,null,null,null,null,null,null,"Approved by:",null,"Paul Roberts"]
[null,null,null,null,null,null,null,null,"Job title:",null,"Project Director"]
[]
[null,"Description of project: "]
[null,"The development comprises the demolition of Denmark Place properties and retention of the façade on St Giles High Street, and new build elements and refurbishment. The development is split into Zones 1-3 with Skanska working on Zones 1 and 2. The site occupies an irregular quadrilateral of land boarded by Denmark Street, Charing Cross Road, Andrew Borde Road and St Giles High Street. The site is adjacent to the new (not yet completed) Tottenham Court Road Crossrail station, and the Centre Point redevelopment, adjacent to the intersection of Oxford Street, Tottenham Court Road and Charing Cross Road. Zone 1 comprises new build construction with retained façade of York Mansions along St Giles High Street and relocation of façade on 1-3 Denmark Place. It includes a 4 level basement for an event space, offices, retail, residential, and a hotel. Zone 2 comprises mostly refurbishment of non-listed properties north of Denmark Street, including retained facades to be repaired and new roof extensions and conversion to office, retail and residential"]
[null,"Size of project (m2 total floor area)",null,null,18965,null,null,null,"Construction Cost",null,null,90000000]
[]
[null,"Appointed persons"]
[null,"Site Waste Manager:",null,"Eleanor Stewart",null,null,null,null,"Other:"]
[null,"Contact number:",null,"07823 355 818",null,null,null,null,"Contact number:"]
[]
[null,"Other:",null,null,null,null,null,null,"Other:"]
[null,"Contact number:",null,null,null,null,null,null,"Contact number:"]
[]
[null,"Distribution"]
[null,"A copy of the SWMP has been distributed all relevant members of the project team including the Client, Project Director, Trade Contractors, Procurement and Design team."]
[null,"The most recent copy of this document can be found on the Project Integrated Management System. A copy of the SWMP must be distributed to all significant parties concerned with waste on site, they must also have access to the most recent copy and be fully aware of where it can be found."]
[]
[]
[null,null,"Signed: ",null,null,null,"(Client)",null,"Signed: ",null,null,null,"(Project Director)"]
[null,null,"Date:",null,null,null,null,null,"Date:"]

{"sheet":"Objectives","index":1,"n_rows":42,"n_cols":16,"rows_kept":42,"cut":false,"hidden":false,"merged":[[19,1,24,2],[3,1,3,13],[15,1,15,13],[4,1,4,5],[16,3,16,4],[17,5,17,13],[5,2,5,10],[6,2,6,10],[12,2,12,10],[7,2,7,10],[8,2,8,10],[10,2,10,10],[11,2,11,10],[17,1,18,2],[18,5,18,13],[9,2,9,10],[25,1,34,2],[37,5,37,13],[38,5,38,13],[39,5,39,13],[29,5,29,13],[28,5,28,13],[35,5,35,13],[27,5,27,13],[25,5,25,13],[26,5,26,13],[31,5,31,13],[32,5,32,13],[33,5,33,13],[34,5,34,13],[35,1,41,2],[41,5,41,13],[19,5,19,13],[20,5,20,13],[30,5,30,13],[36,5,36,13],[40,5,40,13],[21,5,21,13],[22,5,22,13],[23,5,23,13],[24,5,24,13]]}
["swmp"]
[]
[null,"Objectives & Performance"]
[null,"This plan will aim to improve resource efficiency by reducing the amount of waste produced and recover as much as possible of the remainder. This will be achieved by forecasting projected wastes, their disposal methods and by preventing or minimising waste"]
[null,{"$f":"CONCATENATE('Site Info'!D5,\" aims to achieve the following waste objectives:\")","v":"St Gilles Circus  aims to achieve the following waste objectives:"},null,null,null,null,null,null,null,null,null,"Initial Estimate","Actual Performance","Target Achieved (Y/N)"]
[null,"Objective 1:","Produce less than 6.5 tonnes non-hazardous construction waste (excluding demolition & excavation waste) per 100m2 (gross internal floor area) for the non-residential areas",null,null,null,null,null,null,null,null,null,{"$f":"SUM(('Actual Waste - ALL'!K14/'Site Info'!E16)*100)","v":0}]
[null,"Objective 2:","Produce less than 16.9 tonnes non-hazardous construction waste (excluding demolition & excavation waste) per £100k (project value) for the Denmark Street residential "]
[null,"Objective 3:","Recycle at least 85% non-hazardous demolition waste",null,null,null,null,null,null,null,null,null,{"$f":"IF(ISERR('Actual Waste - ALL'!L8)=TRUE,0,'Actual Waste - ALL'!L8)","v":0}]
[null,"Objective 4:","Recycle at least 85% non-hazardous construction waste",null,null,null,null,null,null,null,null,null,{"$f":"IF(ISERR('Actual Waste - ALL'!L14)=TRUE,0,'Actual Waste - ALL'!L14)","v":0}]
[null,"Objective 5:","Recycle at least 95% of all waste (including demolition, excavation & construction)",null,null,null,null,null,null,null,null,null,{"$f":"IF(ISERR('Actual Waste - ALL'!L17)=TRUE,0,'Actual Waste - ALL'!L17)","v":0}]
[null,"Objective 6:","To segregate the following waste streams on site (brick/blockwork, plasterboard, metal, timber, hazardous waste, office paper, packaging)"]
[null,"Objective 7:","To actively engage trade contractors with waste minimisation and waste management activities"]
[null,"Objective 8:","To reuse bricks from the demolition in the façade refurbishment on Denmark Street"]
[]
[null,"Waste minimisation actions "]
[null,"The key actions selected to help save costs, ensure business efficiency throughout and reduce waste are listed below. Those is grey were considered not to be feasible"]
[null,null,null,"Possible implementation?"]
[null,"All",null,null,null,"Consider waste arising at demolition phase as well as construction possible use back into the project. Consult the ICE demolition Protocol for more details ",null,null,null,null,null,null,null,null,null,1]
[null,null,null,null,null,"Consult with other parties and expert help where appropriate. E.g WRAP, Envirowise, Community reuse/ recycling schemes etc",null,null,null,null,null,null,null,null,null,1]
[null,"Designers",null,null,null,"Standardise dimensions and materials used (corridor/ room widths, panelling etc)",null,null,null,null,null,null,null,null,null,1]
[null,null,null,null,null,"Incorporate modularisation and off site manufacture",null,null,null,null,null,null,null,null,null,1]
[null,null,null,null,null,"Maximise reuse of existing structures and waste materials (Use RC toolkit, Aggregain and the WRAP recycled product database)",null,null,null,null,null,null,null,null,null,1]
[null,null,null,null,null,"Target packages which produce high volumes of waste",null,null,null,null,null,null,null,null,null,1]
[null,null,null,null,null,"Minimise temporary works",null,null,null,null,null,null,null,null,null,1]
[null,null,null,null,null,"Ensure full understanding of requirements of end use",null,null,null,null,null,null,null,null,null,1]
[null,"Procurement",null,null,null,"Use reusable packaging, take back schemes or waste minimisation as a criteria to select trades",null,null,null,null,null,null,null,null,null,1]
[null,null,null,null,null,"Specify recycled products where feasible (use the RC toolkit, Aggregain and WRAP recycled product database) ",null,null,null,null,null,null,null,null,null,1]
[null,null,null,null,null,"Procure correct sized panels (no offcuts)",null,null,null,null,null,null,null,null,null,1]
[null,null,null,null,null,"Procure accurate amount of materials ",null,null,null,null,null,null,null,null,null,1]
[null,null,null,null,null,"Utilise consolidation centres",null,null,null,null,null,null,null,null,null,1]
[null,null,null,null,null,"Set specific waste targets for high waste packages (e.g. dry lining, brickwork 10%)",null,null,null,null,null,null,null,null,null,1]
[null,null,null,null,null,"Arrange buy back schemes",null,null,null,null,null,null,null,null,null,1]
[null,null,null,null,null,"Procure items in bulk (less packaging E.g. paint)",null,null,null,null,null,null,null,null,null,1]
[null,null,null,null,null,"Procure non-hazardous materials (cheaper disposal options)",null,null,null,null,null,null,null,null,null,1]
[null,null,null,null,null,"Source durable products that require less protection on delivery",null,null,null,null,null,null,null,null,null,1]
[null,"Project team",null,null,null,"Use covered, secure storage facilities",null,null,null,null,null,null,null,null,null,1]
[null,null,null,null,null,"Use incentives and fines for trade contractor waste performances",null,null,null,null,null,null,null,null,null,1]
[null,null,null,null,null,"Design a logistics plan incorporating just in time deliveries & avoidance of repeat handling.",null,null,null,null,null,null,null,null,null,1]
[null,null,null,null,null,"Educate site labour in waste matters",null,null,null,null,null,null,null,null,null,1]
[null,null,null,null,null,"Use a hard standing waste compound ",null,null,null,null,null,null,null,null,null,1]
[null,null,null,null,null,"Ensure good housekeeping and adequate supply of segregated waste bins/ skips",null,null,null,null,null,null,null,null,null,1]
[null,null,null,null,null,"Use centralised dispensers for paint, mortar etc with reusable containers",null,null,null,null,null,null,null,null,null,1]

{"sheet":"Waste Forecast - Dem","index":2,"n_rows":30,"n_cols":12,"rows_kept":30,"cut":false,"hidden":false,"merged":[[7,1,12,1],[7,2,9,2],[25,1,27,1],[25,2,27,2],[19,2,22,2],[14,1,22,1],[14,2,15,2],[4,11,5,11],[4,5,5,5],[3,1,3,10],[5,7,6,7],[5,8,6,8],[5,9,6,9],[5,10,6,10],[4,1,6,1],[4,2,6,2],[4,3,6,3],[4,6,5,6]]}
["swmp"]
[]
[null,"Waste Forecast - Demolition"]
[null,"The site waste management plan data sheet can be used to forcast the estimation of waste for the project and identy actions to manage waste effectively.\nThe trade contractor waste management plan should be used to enable more accurate estimations of waste as the project develops."]
[null,"Classification","Waste Group","Waste Type\n\n(insert extra rows if required)",null,"Estimation of waste \n(adjusted throughout project)","Material Recovery Index \n(MRI)","Waste Minimisation Opportunities","On-site recycling / reuse / segregation","Off-site recycling / reuse ","If no other option - ","Material Recovery Potential (DMP)"]
[null,null,null,null,"(EWC)",null,null,"(prefabrication, material selection etc)","(specify method and use and if waste processing licence or exemption held)","(specify recycler and recycling outlet)","Disposal (where)"]
[null,null,null,null,"EWC code","Mass \n(tonnes)","Good practice",null,null,null,null,"Mass\n(tonnes)"]
[null,"Inert","Hardcore","Concrete","(17 01 01)",810,0.95,"Using part of existing structure in original form within completed construction","Excess material can be dried and reused as backfill, segregate ","Segregate, land reclamation, re – processed and reused in the construction industry","Landfill",{"$f":"F8*G8","v":769.5}]
[null,null,null,"Rubble & hardcore ","(17 01 07)",195.75,0.9,"Using part of existing structure in original form within completed construction","Use as hardcore on site","Segregate, land reclamation, re – processed and reused in the construction industry","Landfill",{"$f":"F9*G9","v":176.17500000000001}]
[null,null,null,"Brick & Block work","(17 01 02)",360,0.9,"Using part of existing structure in original form within completed construction","Use as hardcore on site","Segregate, land reclamation, re – processed and reused in the construction industry","Landfill",324]
[null,null,"Inert soils","Sub soil","(17 05 04)",0,0.95,"Use techniques with less land remediation e.g. piling  ","Re use in landscaping, use as back fill","Land reclamation","Landfill",0]
[null,null,"Tiles & Ceramics","Tiles & Ceramics","(17 01 03)",7.1999999999999993,0.85,"Using part of existing structure in original form within completed construction","Use as hardcore on site","Segregate, land reclamation, re – processed and reused in the construction industry","Landfill",6.1199999999999992]
[null,null,"Glass","Glass","(17 02 02)",2.25,0.8,null,null,"Segregate waste and send for recycling ","Landfill",1.8]
[null,null,null,null,"Inert Subtotal",{"$f":"SUM(F8:F13)","v":1375.2},{"$f":"L14/F14","v":0.92902486910994742},null,null,null,null,{"$f":"SUM(L8:L13)","v":1277.5949999999998}]
[null,null,"Metals","Ferrous","(17 04 05)",1350,0.98,"Using part of existing structure in original form within completed construction","Re-used in temporary works","Segregate waste and send to scrap merchant","Landfill",{"$f":"F15*G15","v":1323}]
[null,null,null,"Non-Ferrous","(17 04 07)",22.5,0.98,"Using part of existing structure in original form within completed construction","Re-used in temporary works","Segregate waste and send to scrap merchant","Landfill",22.05]
[null,null,"Asphalt","Asphalt","(17 03 02)",0,0.95,"Reuse tarmac areas intact","Re-use in temporary works","Segregate waste and send for recycling ","Landfill",0]
[null,null,"Plasterboard","Gypsum","(17 08 02)",45.018000000000001,0.9,null,null,"Send back to a plasterboard recycling facility.","Landfill",{"$f":"F18*G18","v":40.516200000000005}]
[null,null,"Wood","Timber","(17 02 01)",26.999999999999996,0.9,null,"Reuse for shuttering and general carpentry (steps etc).","Segregate, chip for composting or furniture manufacture or other reuse.","Landfill / Incinerate",24.299999999999997]
[null,null,"Mixed Construction Waste","Mixed Construction Waste","(17 09 04)",0,0.7,null,null,"Send to transfer station for further segregation","Landfill",0]
[null,null,null,"Top soil","(17 05 04)",0,0,"Store on site","Re use in landscaping","Land reclamation, sell to other companies","Landfill",0]
[null,null,null,"Green waste","(02 01 03)",0,0.95,"Excavate and replant larger specimens (trees)","Chip on site, compost, for landscaping ","Segregate, send for composting, spread on land (improvement)","Landfill",0]
[null,null,null,"Other",null,0,null,null,null,null,null,0]
[null,null,null,null,"Active Subtotal",{"$f":"SUM(F15:F23)","v":1444.518},{"$f":"L24/F24","v":0.97601151387521645},null,null,null,null,{"$f":"SUM(L15:L23)","v":1409.8661999999999}]
[null,null,null,null,"Non-Hazardous Subtotal",{"$f":"SUM(F24,F14)","v":2819.7179999999998},{"$f":"L25/F25","v":0.95309573510542545},null,null,null,null,{"$f":"SUM(L24,L14)","v":2687.4611999999997}]
[null,"Hazardous","Hazardous  waste","Asbestos","(17 06 05*)",0,0,"N/A","N/A","N/A","Landfill",0]
[null,null,null,"Oils","(20 01 26*)",0,0,"Correct Ordering and Storage","N/A","N/A","Landfill",0]
[null,null,null,"Other",null,0,0,null,null,null,null,0]
[null,null,null,null,"Hazardous Subtotal",{"$f":"SUM(F26:F28)","v":0},{"$f":"L29/F29","v":{"$error":"#DIV/0!"}},null,null,null,null,{"$f":"SUM(L26:L28)","v":0}]
[null,null,null,null,"TOTAL",{"$f":"SUM(F25,F29)","v":2819.7179999999998},{"$f":"L30/F30","v":0.95309573510542545},null,null,null,null,{"$f":"SUM(L25,L29)","v":2687.4611999999997}]

{"sheet":"Waste Estimator DEM","index":3,"n_rows":22,"n_cols":35,"rows_kept":22,"cut":false,"hidden":false,"merged":[[21,7,21,8],[3,1,3,5],[4,1,5,5],[7,5,8,5],[7,1,8,1],[7,2,8,2],[7,3,8,3],[7,4,8,4]]}
["swmp"]
[null,"Demolition Waste Estimator",null,null,null,null,null,null,null,null,null,null,"Concrete Frame",null,null,null,null,null,"Load bearing Masonry",null,null,null,null,null,"Steel Frame",null,null,null,null,null,"Timber"]
[null,null,null,null,null,null,null,"Material","EWC","Volume (m3)","Weight (Tonnes)",null,"Material","Percentage type","conversion factor","Volume (m3)","Weight (Tonnes)",null,"Material","Percentage type","conversion factor","Volume (m3)","Weight (Tonnes)",null,"Material","Percentage type","conversion factor","Volume (m3)","Weight (Tonnes)",null,"Material","Percentage type","conversion factor","Volume (m3)","Weight (Tonnes)"]
[null,"This tool is based on WRAP data and can be used to estimate quantities of demolition materials.",null,null,null,null,null,"Concrete","(17 01 01)",{"$f":"SUM(P4,V4,AB4,AH4)","v":870.96774193548379},{"$f":"SUM(Q4,W4,AC4,AI4)","v":810},null,"Concrete",0.56824837686192609,1.075268817204301,{"$f":"Q4*O4","v":0},{"$f":"Q$22*N4","v":0},null,"Concrete",0.29708437638050361,1.075268817204301,{"$f":"W4*U4","v":0},{"$f":"W$22*T4","v":0},null,"Concrete",0.28726276883007451,1.075268817204301,{"$f":"AC4*AA4","v":870.96774193548379},{"$f":"AC$22*Z4","v":810},null,"Concrete",0.24869177762810216,1.075268817204301,{"$f":"AI4*AG4","v":0},{"$f":"AI$22*AF4","v":0}]
[null,"To use the tool, please complete the information below. The figures opposite are based on building volume and construction type.",null,null,null,null,null,"Rubble & hardcore ","(17 01 07)",{"$f":"SUM(P5,V5,AB5,AH5)","v":326.25},{"$f":"SUM(Q5,W5,AC5,AI5)","v":195.75},null,"Rubble & hardcore ",9.9033671448292421E-2,1.6666666666666667,{"$f":"Q5*O5","v":0},0,null,"Rubble & hardcore ",3.451259019290237E-2,1.6666666666666667,{"$f":"W5*U5","v":0},0,null,"Rubble & hardcore ",6.9421835800601336E-2,1.6666666666666667,{"$f":"AC5*AA5","v":326.25},195.75,null,"Rubble & hardcore ",3.8858090254390965E-2,1.6666666666666667,{"$f":"AI5*AG5","v":0},0]
[null,null,null,null,null,null,null,"Brick & Block work","(17 01 02)",545.4545454545455,360,null,"Brick & Block work",0.10017198951091648,1.5151515151515151,0,0,null,"Brick & Block work",0.41415108231482844,1.5151515151515151,0,0,null,"Brick & Block work",0.12767234170225533,1.5151515151515151,545.4545454545455,360,null,"Brick & Block work",0.20724314802341848,1.5151515151515151,0,0]
[null,null,null,null,null,null,null,"Sub soil","(17 05 04)",0,0,null,"Sub soil",0,1.6949152542372883,0,0,null,"Sub soil",0,1.6949152542372883,0,0,null,"Sub soil",0,1.6949152542372883,0,0,null,"Sub soil",0,1.6949152542372883,0,0]
[null,"Construction Type","Concrete Frame","Load bearing Masonry","Steel Frame","Timber",null,"Tiles & Ceramics","(17 01 03)",14.098296455844917,7.1999999999999993,null,"Tiles & Ceramics",4.5532722504962033E-3,1.9580967299784608,0,0,null,"Tiles & Ceramics",4.6016786923869825E-3,1.9580967299784608,0,0,null,"Tiles & Ceramics",2.5534468340451064E-3,1.9580967299784608,14.098296455844917,7.1999999999999993,null,"Tiles & Ceramics",2.0724314802341846E-2,1.9580967299784608,0,0]
[null,null,null,null,null,null,null,"Glass","(17 02 02)",6.8181818181818183,2.25,null,"Glass",1.1383180626240508E-3,3.0303030303030303,0,0,null,"Glass",1.1504196730967456E-3,3.0303030303030303,0,0,null,"Glass",7.9795213563909587E-4,3.0303030303030303,6.8181818181818183,2.25,null,"Glass",2.590539350292731E-2,3.0303030303030303,0,0]
[null,"Length (m)",null,null,50,null,null,"Ferrous","(17 04 05)",3139.5348837209303,1350,null,"Ferrous",0.15367293845424687,2.3255813953488373,0,0,null,"Ferrous",0.17256295096451185,2.3255813953488373,0,0,null,"Ferrous",0.47877128138345748,2.3255813953488373,3139.5348837209303,1350,null,"Ferrous",0.19429045127195482,2.3255813953488373,0,0]
[null,"Width (m)",null,null,12,null,null,"Non-Ferrous","(17 04 07)",25,22.5,null,"Non-Ferrous",4.5532722504962033E-3,1.1111111111111112,0,0,null,"Non-Ferrous",1.1504196730967458E-2,1.1111111111111112,0,0,null,"Non-Ferrous",7.9795213563909582E-3,1.1111111111111112,25,22.5,null,"Non-Ferrous",2.590539350292731E-2,1.1111111111111112,0,0]
[null,"Footprint (m2)",{"$f":"C10*C11","v":0},{"$f":"D10*D11","v":0},{"$f":"E10*E11","v":600},null,null,"Asphalt","(17 03 02)",0,0,null,"Asphalt",0,1.1111111111111112,0,0,null,"Asphalt",0,1.1111111111111112,0,0,null,"Asphalt",0,1.1111111111111112,0,0,null,"Asphalt",0,1.1111111111111112,0,0]
[null,"Height (m)",null,null,10,null,null,"Gypsum","(17 08 02)",73.896913985554832,45.018000000000001,null,"Gypsum",2.6191663786377023E-2,1.6414970453053186,0,0,null,"Gypsum",2.3017596819319686E-2,1.6414970453053186,0,0,null,"Gypsum",1.5965426329867031E-2,1.6414970453053186,73.896913985554832,45.018000000000001,null,"Gypsum",0.12957877830164238,1.6414970453053186,0,0]
[null,"Volume (m3)",{"$f":"C12*C13","v":0},{"$f":"D12*D13","v":0},{"$f":"E12*E13","v":6000},{"$f":"F12*F13","v":0},null,"Timber","(17 02 01)",81.818181818181813,26.999999999999996,null,"Timber",3.9613468579316968E-2,3.0303030303030303,0,0,null,"Timber",4.1415108231482846E-2,3.0303030303030303,0,0,null,"Timber",9.5754256276691496E-3,3.0303030303030303,81.818181818181813,26.999999999999996,null,"Timber",0.1088026527122947,3.0303030303030303,0,0]
[null,null,null,null,null,null,null,"Mixed Construction Waste","(17 09 04)",0,0,null,"Mixed Construction Waste",1.3659816751488611E-3,3.7037037037037033,0,0,null,"Mixed Construction Waste",0,3.7037037037037033,0,0,null,"Mixed Construction Waste",0,3.7037037037037033,0,0,null,"Mixed Construction Waste",0,3.7037037037037033,0,0]
[null,null,null,null,null,null,null,"Top soil","(17 05 04)",0,0,null,"Top soil",null,null,0,0,null,"Top soil",null,null,0,0,null,"Top soil",null,null,0,0,null,"Top soil",null,null,0,0]
[null,null,null,null,null,null,null,"Green waste","(02 01 03)",0,0,null,"Green waste",0,2.8793550244745179,0,0,null,"Green waste",0,2.8793550244745179,0,0,null,"Green waste",0,2.8793550244745179,0,0,null,"Green waste",0,2.8793550244745179,0,0]
[null,null,null,null,null,null,null,"Other",null,0,0,null,"Other",null,null,0,0,null,"Other",null,null,0,0,null,"Other",null,null,0,0,null,"Other",null,null,0,0]
[null,null,null,null,null,null,null,"Asbestos","(17 06 05*)",0,0,null,"Asbestos",1.4570471201587852E-3,3.7037037037037033,0,0,null,"Asbestos",0,3.7037037037037033,0,0,null,"Asbestos",0,3.7037037037037033,0,0,null,"Asbestos",0,3.7037037037037033,0,0]
[null,null,null,null,null,null,null,"Oils",null,{"$f":"SUM(P20,V20,AB20,AH20)","v":0},{"$f":"SUM(Q20,W20,AC20,AI20)","v":0},null,null,null,null,{"$f":"Q20*O20","v":0},0,null,null,null,null,{"$f":"W20*U20","v":0},0,null,null,null,null,{"$f":"AC20*AA20","v":0},0,null,null,null,null,{"$f":"AI20*AG20","v":0},0]
[null,null,null,null,null,null,null,"Other",null,0,0,null,"Other",null,null,0,0,null,"Other",null,null,0,0,null,"Other",null,null,0,0,null,"Other",null,null,0,0]
[null,null,null,null,null,null,null,"TOTAL",null,{"$f":"SUM(J4:J21)","v":5083.8387451887229},{"$f":"SUM(K4:K21)","v":2819.7179999999998},null,"TOTAL",0.48316900000000002,null,{"$f":"SUM(P4:P21)","v":0},{"$f":"C14*N22","v":0},null,"TOTAL",0.54327999999999999,null,{"$f":"SUM(V4:V21)","v":0},{"$f":"D14*T22","v":0},null,"TOTAL",0.46995300000000001,null,{"$f":"SUM(AB4:AB21)","v":5083.8387451887229},{"$f":"E14*Z22","v":2819.7179999999998},null,"TOTAL",0.38602000000000003,null,{"$f":"SUM(AH4:AH21)","v":0},{"$f":"F14*AF22","v":0}]

{"sheet":"Waste Forecast - Exc","index":4,"n_rows":22,"n_cols":12,"rows_kept":22,"cut":false,"hidden":false,"merged":[[3,1,3,12],[4,6,5,6],[5,10,6,10],[4,1,6,1],[4,2,6,2],[4,3,6,3],[4,11,5,11],[4,5,5,5],[5,7,6,7],[5,8,6,8],[5,9,6,9],[7,1,8,1],[16,1,19,1],[16,2,19,2],[10,1,13,1],[11,2,12,2]]}
["swmp"]
[]
[null,"Waste Forecast - Bulk Excavation (not including excavation from piling or infrastructure)"]
[null,"The site waste management plan data sheet can be used to forcast the estimation of waste for the project and identy actions to manage waste effectively.\nThe trade contractor waste management plan should be used to enable more accurate estimations of waste as the project develops."]
[null,"Classification","Waste Group","Waste Type\n\n(insert extra rows if required)",null,"Estimation of waste \n(adjusted throughout project)","Material Recovery Index (MRI)","Waste Minimisation Opportunities","On-site recycling / reuse / segregation","Off-site recycling / reuse ","If no other option - ","Material Recovery Potential (MRP)"]
[null,null,null,null,"(EWC)",null,null,"(prefabrication, material selection etc)","(specify method and use and if waste processing licence or exemption held)","(specify recycler and recycling outlet)","Disposal (where)"]
[null,null,null,null,"EWC code","Mass \n(tonnes)","Good Practice\n%",null,null,null,null,"Mass \n(tonnes)"]
[null,"Inert","Hardcore","Rubble & hardcore ","(17 01 07)",null,0.95,"Using part of existing structure in original form within completed construction","Use as hardcore on site","Segregate, land reclamation, re – processed and reused in the construction industry","Landfill",{"$f":"F8*G8","v":0}]
[null,null,"Inert soils","Sub soil","(17 05 04)",null,0.95,"Use techniques with less land remediation e.g. piling  ","Re use in landscaping, use as back fill","Land reclamation","Landfill",{"$f":"F9*G9","v":0}]
[null,null,null,null,"Inert Subtotal",{"$f":"SUM(F8:F9)","v":0},{"$f":"L10/F10","v":{"$error":"#DIV/0!"}},null,null,null,null,{"$f":"SUM(L8:L9)","v":0}]
[null,"Active","Asphalt","Asphalt","(17 03 02)",null,0.9,"Reuse tarmac areas intact","Re-use in temporary works","Segregate waste and send for recycling ","Landfill",0]
[null,null,"Biodegrade-able Waste","Top soil","(17 05 04)",null,1,"Store on site","Re use in landscaping","Land reclamation, sell to other companies","Landfill",0]
[null,null,null,"Green waste","(02 01 03)",null,0.85,"Excavate and replant larger specimens (trees)","Chip on site, compost, for landscaping ","Segregate, send for composting, spread on land (improvement)","Landfill",0]
[null,null,"Other","Other","tbc",null,null,null,null,null,null,0]
[null,null,null,null,"Active Subtotal",{"$f":"SUM(F11:F14)","v":0},{"$f":"L15/F15","v":{"$error":"#DIV/0!"}},null,null,null,null,{"$f":"SUM(L11:L14)","v":0}]
[null,null,null,null,"Non-Hazardous Subtotal",{"$f":"SUM(F15,F10)","v":0},{"$f":"L16/F16","v":{"$error":"#DIV/0!"}},null,null,null,null,{"$f":"SUM(L15,L10)","v":0}]
[null,"Hazardous","Hazardous  waste","Contaminated Land","(17 05 03*)",0,0,"N/A","N/A","N/A","Landfill",0]
[null,null,null,"Oils  ","(20 01 26*)",null,0,null,null,null,null,0]
[null,null,null,"Asphalt and tar  ","(17 03 03*)",null,0,"N/A","N/A","N/A","Landfill",0]
[null,null,null,"Other","tbc",null,null,null,null,null,null,0]
[null,null,null,null,"Hazardous Subtotal",{"$f":"SUM(F17:F20)","v":0},{"$f":"L21/F21","v":{"$error":"#DIV/0!"}},null,null,null,null,{"$f":"SUM(L17:L20)","v":0}]
[null,null,null,null,"TOTAL",{"$f":"SUM(F16,F21)","v":0},{"$f":"L22/F22","v":{"$error":"#DIV/0!"}},null,null,null,null,{"$f":"SUM(L16,L21)","v":0}]

{"sheet":"Waste Forecast - Con","index":5,"n_rows":36,"n_cols":13,"rows_kept":36,"cut":false,"hidden":false,"merged":[[3,1,3,11],[5,8,6,8],[5,9,6,9],[5,10,6,10],[5,11,6,11],[4,1,6,1],[4,2,6,2],[4,5,6,5],[4,7,5,7],[28,2,33,2],[28,1,33,1],[22,2,23,2],[14,1,25,1],[4,12,5,12],[7,1,12,1],[7,2,9,2],[4,6,5,6],[4,3,5,3]]}
["swmp"]
[]
[null,"Waste Forecast - Construction"]
[null,"The site waste management plan data sheet can be used to forcast the estimation of waste for the project and identy actions to manage waste effectively.\nThe trade contractor waste management plan should be used to enable more accurate estimations of waste as the project develops."]
[null,"Classification","Waste Group","Waste Type",null,"Trade Contractor / Package most likely to produce","Estimation of waste \n(adjusted throughout project)","Material Recovery Index (MRI)","Waste Minimisation Opportunities","On-site recycling / reuse / segregation","Off-site recycling / reuse ","If no other option - ","Material Recovery Potential (MRP)"]
[null,null,null,null,"(EWC)",null,null,null,"(prefabrication, material selection etc)","(specify method and use and if waste processing licence or exemption held)","(specify recycler and recycling outlet)","Disposal (where)"]
[null,null,null,"(insert extra rows if required)","EWC code",null,"Mass \n(tonnes)","Good Practice\n%",null,null,null,null,"Mass \n(tonnes)"]
[null,"Inert","Hardcore","Concrete","(17 01 01)","Foundations / Piling, Concrete frame, ground works, floors",null,1,"Prefabrication off site, on site batcher, plan pours (use surplus for blinding etc)","Excess material can be dried and reused as backfill, segregate ","Segregate, land reclamation, re – processed and reused in the construction industry","Landfill",{"$f":"H8*G8","v":0}]
[null,null,null,"Rubble & hardcore ","(17 01 07)","Infrastructure, Foundations, Envelope",null,0.95,"Using part of existing structure in original form within completed construction","Use as hardcore on site","Segregate, land reclamation, re – processed and reused in the construction industry","Landfill",{"$f":"H9*G9","v":0}]
[null,null,null,"Brick & Block work","(17 01 02)","Envelope",null,1,"Incentive schemes not based on m2 completed, correct storage, correct ordering","Use as hardcore on site","Segregate, land reclamation, re – processed and reused in the construction industry","Landfill",0]
[null,null,"Inert soils","Sub soil","(17 05 04)","Piling, Groundworks",null,0.95,"Store on site. Use techniques with less land remediation e.g. piling  ","Re use in landscaping, use as back fill","Land reclamation","Landfill",0]
[null,null,"Tiles & Ceramics","Tiles and Ceramics  ","(17 01 03)","Envelope, internal finishing trades",null,0.9,"Correct ordering, Store correctly","Use as hardcore on site","Segregate, land reclamation, re – processed and reused in the construction industry","Landfill",0]
[null,null,"Glass","Glass","(17 02 02)","Envelope",null,0.9,"Programmed JIT delivery",null,"Segregate waste and send for recycling ","Landfill",0]
[null,null,null,null,null,"Inert Subtotal",{"$f":"SUM(G8:G13)","v":0},{"$f":"M14/G14","v":{"$error":"#DIV/0!"}},null,null,null,null,{"$f":"SUM(M8:M13)","v":0}]
[null,"Active","Plastics","Plastics  ","(17 02 03)","Ground works, M&E",null,0.75,"Prefabrication, correct ordering, Store correctly","Store and reuse larger offcuts","Segregate and send to recycling facility","Landfill",0]
[null,null,"Iron, Steel & Metals","Mixed metals","(17 04 07)","Temporary works, Steel frame, Secondary Steelwork, Concrete Frame, Decking",null,1,"Prefabrication, correct ordering, Store correctly","Re-used in temporary works","Segregate waste and send to scrap merchant","Landfill",0]
[null,null,"Packaging","Mixed Packaging","(15 01 06)","M&E, Fit out, Cladding, Doors & Windows",null,0.9,"Request minimal/ reusable packaging, suppliers to take back their packaging","Reusable packaging","Segregate cardboard, pallets and plastic for recycling","Landfill",0]
[null,null,"Plasterboard","Gypsum","(17 08 02)","Dry lining",null,0.9,"Procure to uniform size, store flat, undercover in a secure compound, correct ordering","Dedicated storage place for off cuts to reuse. ","Send back to a plasterboard recycling facility.","Landfill",0]
[null,null,"Timber / Pallets","Timber","(17 02 01)","Concrete frame, ground works, joinery, pallets",null,0.8,"Use steel shuttering, reuse all shuttering, use another product. Return pallets to supplier or use plastic pallets.","Reuse for shuttering and general carpentry (steps etc). Reuse pallets for internal storage and movements of materials","Segregate, chip for composting or furniture manufacture or other reuse.","Landfill / Incinerate",0]
[null,null,"Mixed Construction Waste","Mixed Construction Waste","(17 09 04)","All trades",null,0.95,"Pre assembly and prefabrication off site",null,"Send to transfer station for further segregation","Landfill",0]
[null,null,"Topsoil","Top soil","(17 05 04)","Earthworks",null,0.95,"Store on site","Re use in landscaping","Land reclamation, sell to other companies","Landfill",0]
[null,null,"Green Waste","Green waste","(02 01 03)","Earthworks, Landscaping",null,0.9,"Excavate and replant larger specimens (trees)","Chip on site, compost, for landscaping ","Segregate, send for composting, spread on land (improvement)","Landfill",0]
[null,null,"Municipal Waste","Canteen","(20 01 08)","Canteen, logistics",null,0.9,"Use reusable cutlery and crockery","Compost for landscaping. Must be kept separate from other waste & stored in closed wheelie bins","Send for composting (food waste only), segregate paper, cans and glass","Landfill",0]
[null,null,null,"Office card and paper  waste","(20 01 01)","Skanska Management, major packages",null,0.9,"Photocopiers double sided, only issue the relevant pages of a document, only use china cups","Reuse paper, cartridges, plastic cups, newspaper, magazines, tins and cardboard","Segregate, recycle white paper","Landfill",0]
[null,null,"Liquid Waste","Liquids  ","(16 10 02)","dewatering, roadsweeping",null,0,"site logistics to reduce vehicle movements","reuse for damping down site access routes or during demolition","settlement lagoon",null,0]
[null,null,"Other","Floor Coverings","tbc","Fit out",null,0.9,"Procure to uniform size, store flat, undercover in a secure compound, correct ordering","use off cuts on site where quality allows","Vinyl / carpet flooring take back schemes","Landfill",0]
[null,null,null,null,null,"Active Subtotal",{"$f":"SUM(G15:G26)","v":0},{"$f":"M27/G27","v":{"$error":"#DIV/0!"}},null,null,null,null,{"$f":"SUM(M15:M26)","v":0}]
[null,null,null,null,null,"Non-Hazardous Subtotal",{"$f":"SUM(G14,G27)","v":0},{"$f":"M28/G28","v":{"$error":"#DIV/0!"}},null,null,null,null,{"$f":"SUM(M14,M27)","v":0}]
[null,"Hazardous","Hazardous Waste","Contaminated Land","(17 05 03*)","Earthworks, ground works",null,0,"Contain in situ","Remediate on site and reuse material","Remediate off site","Landfill",0]
[null,null,null,"Oils  ","(20 01 26*)","All trades",null,0,"Correct ordering & storage","USE A SEPARATE, SECURE, COVERED CONTAINER FOR STORAGE","Segregate for recycling off site","Landfill",0]
[null,null,null,"Asphalt and tar  ","(17 03 03*)","Earthworks, ground works",null,0,"Reuse tarmac areas intact","Re-use in temporary works","Segregate waste and send for recycling ","Landfill",0]
[null,null,null,"Paint tins, mastic etc","(08 01 XX* & 20 01 27*)","All trades",null,0.7,"Use alternative products that are not disposed of as hazardous waste. Maximise use of mechanical fitting rather than adhesives, use batch filling and re-usable containers","USE A SEPARATE, SECURE, COVERED CONTAINER FOR STORAGE","Sell unused items back to trade or donate to repaint community schemes such as www.communityrepaint.org.uk  ","Incinerator, landfill",0]
[null,null,null,"Cementitious Binders ","(10 13 14)","Ground works, Foundations, Sructure, Envelope, External works",null,null,"Correct ordering, Store correctly. Pre-mixed concrete & mortar. ","Solidify and reuse as hardcore","Segregate waste and send for recycling ","Landfill",0]
[null,null,null,"Other","tbc",null,null,null,null,null,null,null,0]
[null,null,null,null,null,"Hazardous Subtotal",{"$f":"SUM(G29:G34)","v":0},{"$f":"M35/G35","v":{"$error":"#DIV/0!"}},null,null,null,null,{"$f":"SUM(M29:M34)","v":0}]
[null,null,null,null,null,"TOTAL",{"$f":"SUM(G28,G35)","v":0},{"$f":"M36/G36","v":{"$error":"#DIV/0!"}},null,null,null,null,{"$f":"SUM(M28,M35)","v":0}]

{"sheet":"Waste Estimator CON","index":6,"n_rows":28,"n_cols":12,"rows_kept":28,"cut":false,"hidden":true,"merged":[[27,7,27,8],[3,1,4,3],[5,1,6,3]]}
["swmp"]
[null,"Construction Waste Estimator"]
[null,null,null,null,null,null,null,"Material","EWC",null,"Weight (Tonnes)"]
[null,"This tool is based on SMARTWaste and Skanska historical data and can be used to estimate quantities of construction waste",null,null,null,null,null,"Concrete ","(17 01 01)",2.8176150197739707E-2,{"$f":"J4*F$14","v":13.931838346023385}]
[null,null,null,null,null,null,null,"Rubble & hardcore ","(17 01 07)",0.416781974927389,206.07993141272209]
[null,"To use the tool, please complete the information below. The figures opposite are based on gross internal floor area and construction cost.",null,null,null,null,null,"Brick & Block work","(17 01 02)",1.1490108095193871E-2,5.6813413982090841]
[null,null,null,null,null,null,null,"Sub soil","(17 05 04)",1.9254247397507945E-2,9.5203588969347894]
[null,null,null,null,null,null,null,"Tiles and Ceramics  ","(17 01 03)",1.0999999999999999E-2,5.439004999999999]
[null,null,null,null,null,null,null,"Glass","(17 02 02)",0,0]
[null,"Width",30,"m",null,null,null,"Plastics  ","(17 02 03)",1.2338164609823694E-2,6.1006671821503735]
[null,"Length",100,"m",null,null,null,"Metals  ","(17 04 07)",3.1208231836145694E-2,15.431066272541416]
[null,"Footprint",{"$f":"C10*C11","v":3000},"m2",null,null,null,"Packaging ","(15 01 06)",2.4891922202946247E-2,12.307935392857784]
[null,"Number of storeys",2,null,null,null,null,"Gypsum  ","(17 08 02)",1.1239802891364014E-2,5.5575767386493924]
[null,"Gross internal floor area",7607,"m2",6.5,{"$f":"(C14/100)*E14","v":494.45499999999993},null,"Timber ","(17 02 01)",7.5348229475680178E-2,37.256308805397438]
[null,"Construction Cost",{"$f":"'Site Info'!L16","v":90000000},null,5.04,{"$f":"(C15/100000)*E15","v":4536},null,"Mixed Construction Waste","(17 09 04)",0.32002134034038815,158.23615183800661]
[null,null,null,null,null,{"$f":"AVERAGE(F14:F15)","v":2515.2275},null,"Top soil  ","(17 05 04)",0,0]
[null,null,null,null,null,null,null,"Green waste","(02 01 03)",0,0]
[null,null,null,null,null,null,null,"Canteen/office","(20 01 08)",3.4953941572237135E-2,17.283151180100511]
[null,null,null,null,null,null,null,"Office card & paper","(20 01 01)",3.2958864535839313E-3,1.6296675364068425]
[null,null,null,null,null,null,null,"Liquids  ","(16 10 02)",0,0]
[null,null,null,null,null,null,null,"Other","tbc",0,0]
[null,null,null,null,null,null,null,"Contaminated Land","(17 05 03*)",0,{"$f":"J22*L$27","v":0}]
[null,null,null,null,null,null,null,"Oils  ","(20 01 26*)",4.1486571893046997E-2,0.18461918614838899]
[null,null,null,null,null,null,null,"Asphalt and tar  ","(17 03 03*)",0.67250210147465994,2.9926982392618768]
[null,null,null,null,null,null,null,"Paint tins, mastic etc","(08 01 XX* & 20 01 27*)",0.10896278610041528,0.48489474961152756]
[null,null,null,null,null,null,null,"Binders ","(10 13 14)",8.2547565227587313E-2,0.36734450728146018]
[null,null,null,null,null,null,null,"Other ",null,9.4500975304290372E-2,0.4205383176967461,{"$f":"F14*0.9%","v":4.4500950000000001}]
[null,null,null,null,null,null,null,"TOTAL",null,null,{"$f":"SUM(K4:K27)","v":498.90509499999973}]

{"sheet":"TC WMP","index":7,"n_rows":24,"n_cols":8,"rows_kept":24,"cut":false,"hidden":false,"merged":[[26,1,26,4],[26,5,26,6],[22,1,22,4],[23,1,23,4],[29,1,29,4],[29,5,29,6],[27,1,27,4],[27,5,27,6],[28,1,28,4],[28,5,28,6],[25,1,25,4],[25,5,25,6],[24,1,24,4],[22,5,22,6],[23,5,23,6],[24,5,24,6],[21,1,21,4],[21,5,21,6],[13,1,13,4],[13,5,13,6],[20,1,20,4],[20,5,20,6],[15,1,15,4],[15,5,15,6],[16,1,16,4],[16,5,16,6],[17,1,17,4],[17,5,17,6],[18,1,18,4],[18,5,18,6],[19,1,19,4],[19,5,19,6],[4,4,4,7],[5,4,5,5],[6,1,6,7],[7,1,7,7],[14,1,14,4],[14,5,14,6],[10,1,10,4],[8,5,8,6],[9,5,9,6],[10,5,10,6],[11,1,11,4],[11,5,11,6],[8,1,8,4],[9,1,9,4],[12,1,12,4],[12,5,12,6]]}
["swmp"]
[]
[null,"Trade contractor waste management plan"]
[]
[null,"Trade contractor:",null,"Person responsible for waste:"]
[null,"Package title:",null,"Package Number:",null,null,"Date:"]
[null,"Please outline your intended methods of waste minimisation for the duration of the package(s)"]
[]
[null,"Primary Materials",null,null,null,"Amount to be used",null,"Anticipated waste"]
[null,"(please detail all material(s) used)",null,null,null,"Mass \n(tonnes)",null,"Mass\n(tonnes)"]
[]
[]
[]
[]
[]
[]
[]
[]
[]
[]
[]
[]
[null,"Hazardous Materials",null,null,null,"Amount to be used",null,"Anticipated waste"]
[null,"(please detail all material(s) used)",null,null,null,"Mass \n(tonnes)",null,"Mass\n(tonnes)"]

{"sheet":"Site Management","index":8,"n_rows":28,"n_cols":10,"rows_kept":28,"cut":false,"hidden":false,"merged":[[16,1,16,4],[28,1,28,13],[22,2,22,13],[23,2,23,13],[26,2,26,13],[25,2,25,13],[24,2,24,13],[27,1,27,13],[21,1,21,13],[20,1,20,13],[17,1,17,13],[16,5,16,8],[16,9,16,12],[3,1,3,5],[4,1,4,5],[6,1,6,13],[10,1,10,13],[15,5,15,8],[7,1,7,13],[8,1,8,13],[13,1,13,13],[14,1,14,2],[15,1,15,4],[15,9,15,12]]}
["swmp"]
[]
[null,"Site Waste Management Procedure"]
[null,"Our approach to waste management is based on the waste hierarchy (see diagram)."]
[null,"The Skanska Site Waste Management Plan along with the Skanska Waste Managment System on line reporting tool will form the basis for managing waste reduction and realising the Project objectives.\n\nBringing best practice from our other Construction projects; we will hold pre start waste reduction workshops to gather accurate predictions, target reductions and establish KPIs. Our Waste minimisation methodology incorporates the following key steps:\n"]
[null,"1) Waste Minimisation"]
[null,"Elimination at source Working with the design team to minimise inherent waste within the design and building on the efficiencies incorporated such as off site manufacturing pre cast elements and allowing for standardised material dimensions and components.\n\nWaste minimisation Working with the procurement teams to enable careful management including the Design and specification of non hazardous materials and reusable packaging (collapsible plastic Stillages) will be utilised and returned to the supplier.\n\nMaterials management. Estimating waste arising from packages and monitor these during works to ensure targets are being met. Allowing ‘Just In Time’ deliveries and preparatory work to be done offsite to improve housekeeping and reduce damage.\n\n\n\n"]
[]
[]
[null,"2) Waste Segregation & Recycling"]
[null,"Reuse of waste materials opportunities for returning unused materials under buy back schemes, or reuse opportunities on other contracts. \nThe Net Waste toolkit will identify ‘quick wins’ for increasing the overall recycled content as achieved at HMP Glenochil (20% target) project.\n\nRecycling waste materials will be optimised by selecting waste management companies with proven levels of recycling, installing a waste segregation system for construction, demolition and excavation wastes with a minimum 5 segregated waste streams.\n\n"]
[]
[null,"Training"]
[null,"Skanska induction training and pre-start meetings will deliver training relating to the implementation of the SWMP and waste management issues on site."]
[null,"Training will cover:"]
[null,"·   Why the SWMP is required",null,null,null,"·   Waste management issues",null,null,null,"·   Roles and responsibilities"]
[null,"·   Waste minimisation arrangements",null,null,null,"·   Waste segregation arrangements",null,null,null,"·   Waste collection arrangements"]
[null,"A log of the training delivered will be maintained"]
[]
[null," Recording and reporting waste"]
[null,"Waste forecasts will be recorded and updated in the SWMP data sheet."]
[null,"All movements of waste, detailing"]
[null,null,"-          Re-use and recycling on site"]
[null,null,"-          Re-use and recycling off site"]
[null,null,"-          Material sent to recycling facility"]
[null,null,"-          Material sent to exempt site"]
[null,null,"-          Material sent to landfill"]
[null,"including references to waste carriers used will be recorded and maintained and updated monthly through the Skanska  Waste Management System"]

{"sheet":"Actual Waste - Dem","index":9,"n_rows":31,"n_cols":14,"rows_kept":31,"cut":false,"hidden":false,"merged":[[8,1,14,1],[26,1,29,1],[15,1,24,1],[5,12,6,12],[5,7,5,10],[5,11,6,11],[6,7,6,8],[6,9,7,9],[6,10,7,10],[3,1,3,10],[2,11,2,12],[5,13,7,13],[4,1,7,1],[4,2,4,13],[5,2,7,2]]}
["swmp"]
[]
[null,"Summary of Site Waste Performance - Demolition",null,null,null,null,null,null,null,null,"Last Updated:",{"$f":"MAX(Review!C7:C200)","v":"2015-08-05"}]
[]
[null,"Classification","(Should be updated at least every 6 months and completed one month before project completion)"]
[null,null,"Waste Type","Estimated",null,"Actual",null,"Amount of waste (tonnes)",null,null,null,"Performance score (+/-)","Savings \n(+)/(-)","Comments (including lessons learned and possible recommendations for future improvements)"]
[null,null,null,"Quantity of waste","MRI ","Quantity of waste","MRI ","Reused or recycled ",null,"Sent to landfill","Exempt"]
[null,null,null,"Mass\n(tonnes)","%","Mass\n(tonnes)","%","On site","Off site",null,null,"Mass\n(tonnes)","Estimated\n£s"]
[null,"Inert",{"$f":"'Waste Forecast - Dem'!D8","v":"Concrete"},{"$f":"'Waste Forecast - Dem'!F8","v":810},{"$f":"'Waste Forecast - Dem'!G8","v":0.95},{"$f":"SUM(H9:K9)","v":0},{"$f":"SUM(H9+I9)/(H9+I9+J9)","v":{"$error":"#DIV/0!"}},0,0,0,null,{"$f":"F9-D9","v":-810},400]
[null,null,{"$f":"'Waste Forecast - Dem'!D9","v":"Rubble & hardcore "},{"$f":"'Waste Forecast - Dem'!F9","v":195.75},{"$f":"'Waste Forecast - Dem'!G9","v":0.9},0,{"$f":"SUM(H10+I10)/(H10+I10+J10)","v":{"$error":"#DIV/0!"}},0,0,0,null,-195.75,-150]
[null,null,{"$f":"'Waste Forecast - Dem'!D10","v":"Brick & Block work"},{"$f":"'Waste Forecast - Dem'!F10","v":360},{"$f":"'Waste Forecast - Dem'!G10","v":0.9},0,{"$error":"#DIV/0!"},0,0,0,null,-360,300]
[null,null,{"$f":"'Waste Forecast - Dem'!D11","v":"Sub soil"},{"$f":"'Waste Forecast - Dem'!F11","v":0},{"$f":"'Waste Forecast - Dem'!G11","v":0.95},0,{"$error":"#DIV/0!"},0,0,0,null,0,-200]
[null,null,{"$f":"'Waste Forecast - Dem'!D12","v":"Tiles & Ceramics"},{"$f":"'Waste Forecast - Dem'!F12","v":7.1999999999999993},{"$f":"'Waste Forecast - Dem'!G12","v":0.85},0,{"$error":"#DIV/0!"},0,0,0,null,-7.1999999999999993,150]
[null,null,{"$f":"'Waste Forecast - Dem'!D13","v":"Glass"},{"$f":"'Waste Forecast - Dem'!F13","v":2.25},{"$f":"'Waste Forecast - Dem'!G13","v":0.8},0,{"$error":"#DIV/0!"},0,0,0,null,-2.25,80]
[null,null,"Subtotal",{"$f":"'Waste Forecast - Dem'!F14","v":1375.2},{"$f":"'Waste Forecast - Dem'!G14","v":0.92902486910994742},{"$f":"SUM(F9:F14)","v":0},{"$f":"SUM(H15+I15)/(H15+I15+J15)","v":{"$error":"#DIV/0!"}},{"$f":"SUM(H9:H14)","v":0},0,0,0,{"$f":"SUM(L9:L14)","v":-1375.2},580]
[null,"Active",{"$f":"'Waste Forecast - Dem'!D15","v":"Ferrous"},{"$f":"'Waste Forecast - Dem'!F15","v":1350},{"$f":"'Waste Forecast - Dem'!G15","v":0.98},{"$f":"SUM(H16:K16)","v":0},{"$error":"#DIV/0!"},0,0,0,null,{"$f":"F16-D16","v":-1350},600]
[null,null,{"$f":"'Waste Forecast - Dem'!D16","v":"Non-Ferrous"},{"$f":"'Waste Forecast - Dem'!F16","v":22.5},{"$f":"'Waste Forecast - Dem'!G16","v":0.98},0,{"$error":"#DIV/0!"},0,0,0,null,-22.5,150]
[null,null,{"$f":"'Waste Forecast - Dem'!D17","v":"Asphalt"},{"$f":"'Waste Forecast - Dem'!F17","v":0},{"$f":"'Waste Forecast - Dem'!G17","v":0.95},0,{"$error":"#DIV/0!"},0,0,0,null,0]
[null,null,{"$f":"'Waste Forecast - Dem'!D18","v":"Gypsum"},{"$f":"'Waste Forecast - Dem'!F18","v":45.018000000000001},{"$f":"'Waste Forecast - Dem'!G18","v":0.9},0,{"$error":"#DIV/0!"},0,0,0,null,-45.018000000000001,-320]
[null,null,{"$f":"'Waste Forecast - Dem'!D19","v":"Timber"},{"$f":"'Waste Forecast - Dem'!F19","v":26.999999999999996},{"$f":"'Waste Forecast - Dem'!G19","v":0.9},0,{"$error":"#DIV/0!"},0,0,0,null,-26.999999999999996,80]
[null,null,{"$f":"'Waste Forecast - Dem'!D20","v":"Mixed Construction Waste"},{"$f":"'Waste Forecast - Dem'!F20","v":0},{"$f":"'Waste Forecast - Dem'!G20","v":0.7},0,{"$error":"#DIV/0!"},0,0,0,null,0]
[null,null,{"$f":"'Waste Forecast - Dem'!D21","v":"Top soil"},{"$f":"'Waste Forecast - Dem'!F21","v":0},{"$f":"'Waste Forecast - Dem'!G21","v":0},0,{"$error":"#DIV/0!"},0,0,0,null,0]
[null,null,{"$f":"'Waste Forecast - Dem'!D22","v":"Green waste"},{"$f":"'Waste Forecast - Dem'!F22","v":0},{"$f":"'Waste Forecast - Dem'!G22","v":0.95},0,{"$error":"#DIV/0!"},null,0,0,null,0]
[null,null,{"$f":"'Waste Forecast - Dem'!D23","v":"Other"},{"$f":"'Waste Forecast - Dem'!F23","v":0},{"$f":"'Waste Forecast - Dem'!G23","v":0},0,{"$error":"#DIV/0!"},0,0,0,null,0]
[null,null,"Subtotal",{"$f":"'Waste Forecast - Dem'!F24","v":1444.518},{"$f":"'Waste Forecast - Dem'!G24","v":0.97601151387521645},{"$f":"SUM(F16:F24)","v":0},{"$error":"#DIV/0!"},{"$f":"SUM(H16:H24)","v":0},0,0,0,-1444.518,{"$f":"SUM(M16:M24)","v":510}]
[null,null,"Non-Hazardous Subtotal",{"$f":"'Waste Forecast - Dem'!F25","v":2819.7179999999998},{"$f":"'Waste Forecast - Dem'!G25","v":0.95309573510542545},{"$f":"SUM(F15,F25)","v":0},{"$error":"#DIV/0!"},{"$f":"SUM(H15,H25)","v":0},0,0,0,-2819.7179999999998,1090]
[null,"Hazardous",{"$f":"'Waste Forecast - Dem'!D26","v":"Asbestos"},{"$f":"'Waste Forecast - Dem'!F26","v":0},{"$f":"'Waste Forecast - Dem'!G26","v":0},{"$f":"SUM(H27:K27)","v":0},{"$error":"#DIV/0!"},null,null,0,null,{"$f":"F27-D27","v":0}]
[null,null,{"$f":"'Waste Forecast - Dem'!D27","v":"Oils"},{"$f":"'Waste Forecast - Dem'!F27","v":0},{"$f":"'Waste Forecast - Dem'!G27","v":0},{"$f":"SUM(H28:K28)","v":0},{"$error":"#DIV/0!"},null,null,null,null,{"$f":"F28-D28","v":0}]
[null,null,{"$f":"'Waste Forecast - Dem'!D28","v":"Other"},{"$f":"'Waste Forecast - Dem'!F28","v":0},{"$f":"'Waste Forecast - Dem'!G28","v":0},{"$f":"SUM(H29:K29)","v":0},{"$f":"SUM(H29+I29)/(H29+I29+J29)","v":{"$error":"#DIV/0!"}},null,null,null,null,{"$f":"F29-D29","v":0}]
[null,null,"Subtotal",{"$f":"'Waste Forecast - Dem'!F29","v":0},{"$f":"'Waste Forecast - Dem'!G29","v":{"$error":"#DIV/0!"}},{"$f":"SUM(F27:F29)","v":0},{"$error":"#DIV/0!"},{"$f":"SUM(H27:H29)","v":0},0,0,0,0,0]
[null,null,"TOTALS",{"$f":"'Waste Forecast - Dem'!F30","v":2819.7179999999998},{"$f":"'Waste Forecast - Dem'!G30","v":0.95309573510542545},{"$f":"SUM(F15+F25+F30)","v":0},{"$error":"#DIV/0!"},{"$f":"SUM(H15+H25+H30)","v":0},0,0,0,-2819.7179999999998,1090]

{"sheet":"Actual Waste - Exc","index":10,"n_rows":23,"n_cols":14,"rows_kept":23,"cut":false,"hidden":false,"merged":[[17,1,21,1],[8,1,10,1],[12,1,15,1],[4,1,7,1],[4,2,4,13],[5,2,7,2],[5,7,5,10],[5,12,6,12],[5,11,6,11],[6,7,6,8],[6,9,7,9],[6,10,7,10],[5,13,7,13]]}
["swmp"]
[]
[null,"Summary of Site Waste Performance - Excavation",null,null,null,null,null,null,null,null,null,null,"Last Updated:",{"$f":"MAX(Review!C7:C200)","v":"2015-08-05"}]
[]
[null,"Classification","(Should be updated at least every 6 months and completed one month before project completion)"]
[null,null,"Waste Type","Estimated",null,"Actual",null,"Amount of waste (tonnes)",null,null,null,"Performance score (+/-)","Savings \n(+/-)","Comments (including lessons learned and possible recommendations for future improvements)"]
[null,null,null,"Quantity of waste","MRI ","Quantity of waste","MRI ","Reused or recycled ",null,"Sent to landfill","Exempt"]
[null,null,null,"Mass\n(tonnes)","%","Mass\n(tonnes)","%","On site","Off site",null,null,"Mass\n(tonnes)","Estimated\n£s"]
[null,"Inert",{"$f":"'Waste Forecast - Exc'!D8","v":"Rubble & hardcore "},{"$f":"'Waste Forecast - Exc'!F8","v":0},{"$f":"'Waste Forecast - Exc'!G8","v":0.95},{"$f":"SUM(H9:K9)","v":0},{"$f":"SUM(H9+I9)/(H9+I9+J9)","v":{"$error":"#DIV/0!"}},null,null,null,null,{"$f":"F9-D9","v":0}]
[null,null,{"$f":"'Waste Forecast - Exc'!D9","v":"Sub soil"},{"$f":"'Waste Forecast - Exc'!F9","v":0},{"$f":"'Waste Forecast - Exc'!G9","v":0.95},{"$f":"SUM(H10:K10)","v":0},{"$error":"#DIV/0!"},null,null,null,null,{"$f":"F10-D10","v":0}]
[null,null,"Subtotal",{"$f":"'Waste Forecast - Exc'!F10","v":0},{"$f":"'Waste Forecast - Exc'!G10","v":{"$error":"#DIV/0!"}},{"$f":"SUM(F9:F10)","v":0},{"$error":"#DIV/0!"},{"$f":"SUM(H9:H10)","v":0},0,0,0,0,0]
[null,null,{"$f":"'Waste Forecast - Exc'!D11","v":"Asphalt"},{"$f":"'Waste Forecast - Exc'!F11","v":0},{"$f":"'Waste Forecast - Exc'!G11","v":0.9},{"$f":"SUM(H12:K12)","v":0},{"$error":"#DIV/0!"},null,null,null,null,{"$f":"F12-D12","v":0}]
[null,"Active",{"$f":"'Waste Forecast - Exc'!D12","v":"Top soil"},{"$f":"'Waste Forecast - Exc'!F12","v":0},{"$f":"'Waste Forecast - Exc'!G12","v":1},{"$f":"SUM(H13:K13)","v":0},{"$error":"#DIV/0!"},null,null,null,null,{"$f":"F13-D13","v":0}]
[null,null,{"$f":"'Waste Forecast - Exc'!D13","v":"Green waste"},{"$f":"'Waste Forecast - Exc'!F13","v":0},{"$f":"'Waste Forecast - Exc'!G13","v":0.85},{"$f":"SUM(H14:K14)","v":0},{"$error":"#DIV/0!"},null,null,null,null,{"$f":"F14-D14","v":0}]
[null,null,{"$f":"'Waste Forecast - Exc'!D14","v":"Other"},{"$f":"'Waste Forecast - Exc'!F14","v":0},{"$f":"'Waste Forecast - Exc'!G14","v":0},{"$f":"SUM(H15:K15)","v":0},{"$f":"SUM(H15+I15)/(H15+I15+J15)","v":{"$error":"#DIV/0!"}},null,null,null,null,{"$f":"F15-D15","v":0}]
[null,null,"Subtotal",{"$f":"'Waste Forecast - Exc'!F15","v":0},{"$f":"'Waste Forecast - Exc'!G15","v":{"$error":"#DIV/0!"}},{"$f":"SUM(F12:F15)","v":0},{"$error":"#DIV/0!"},{"$f":"SUM(H12:H15)","v":0},0,0,0,0,0]
[null,null,"Non-Hazardous Subtotal",{"$f":"'Waste Forecast - Exc'!F16","v":0},{"$f":"'Waste Forecast - Exc'!G16","v":{"$error":"#DIV/0!"}},{"$f":"SUM(F16,F11)","v":0},{"$error":"#DIV/0!"},{"$f":"SUM(H16,H11)","v":0},0,0,0,0,0]
[null,"Hazardous",{"$f":"'Waste Forecast - Exc'!D17","v":"Contaminated Land"},{"$f":"'Waste Forecast - Exc'!F17","v":0},{"$f":"'Waste Forecast - Exc'!G17","v":0},{"$f":"SUM(H18:K18)","v":0},{"$error":"#DIV/0!"},null,null,null,null,{"$f":"F18-D18","v":0}]
[null,null,{"$f":"'Waste Forecast - Exc'!D18","v":"Oils  "},{"$f":"'Waste Forecast - Exc'!F18","v":0},{"$f":"'Waste Forecast - Exc'!G18","v":0},{"$f":"SUM(H19:K19)","v":0},{"$error":"#DIV/0!"},null,null,null,null,{"$f":"F19-D19","v":0}]
[null,null,{"$f":"'Waste Forecast - Exc'!D19","v":"Asphalt and tar  "},{"$f":"'Waste Forecast - Exc'!F19","v":0},{"$f":"'Waste Forecast - Exc'!G19","v":0},{"$f":"SUM(H20:K20)","v":0},{"$error":"#DIV/0!"},null,null,null,null,{"$f":"F20-D20","v":0}]
[null,null,{"$f":"'Waste Forecast - Exc'!D20","v":"Other"},{"$f":"'Waste Forecast - Exc'!F20","v":0},{"$f":"'Waste Forecast - Exc'!G20","v":0},{"$f":"SUM(H21:K21)","v":0},{"$error":"#DIV/0!"},null,null,null,null,{"$f":"F21-D21","v":0}]
[null,null,"Subtotal",{"$f":"'Waste Forecast - Exc'!F21","v":0},{"$f":"'Waste Forecast - Exc'!G21","v":{"$error":"#DIV/0!"}},{"$f":"SUM(F18:F21)","v":0},{"$error":"#DIV/0!"},{"$f":"SUM(H18:H21)","v":0},0,0,0,0,0]
[null,null,"TOTALS",{"$f":"'Waste Forecast - Exc'!F22","v":0},{"$f":"'Waste Forecast - Exc'!G22","v":{"$error":"#DIV/0!"}},{"$f":"SUM(F11+F16+F22)","v":0},{"$error":"#DIV/0!"},{"$f":"SUM(H11+H16+H22)","v":0},0,0,0,0,0]

{"sheet":"Actual Waste - Con","index":11,"n_rows":37,"n_cols":15,"rows_kept":37,"cut":false,"hidden":false,"merged":[[29,1,35,1],[8,1,14,1],[15,1,27,1],[4,1,7,1],[2,13,2,14],[5,13,6,13],[5,11,6,11],[6,7,6,8],[6,9,7,9],[6,10,7,10],[5,12,6,12],[5,14,7,14],[4,2,4,14],[5,2,7,2],[5,7,5,10]]}
["swmp"]
[]
[null,"Summary of Site Waste Performance - Construction",null,null,null,null,null,null,null,null,null,{"$f":"'Waste Estimator CON'!C14/100","v":76.069999999999993},"Last Updated:",{"$f":"MAX(Review!C7:C200)","v":"2015-08-05"}]
[]
[null,"Classification","(Should be updated at least every 6 months and completed one month before project completion)"]
[null,null,"Waste Type","Estimated",null,"Actual",null,"Amount of waste (tonnes)",null,null,null,"Performance score (+/-)","Waste Area Benchmark","Savings \n(+/-)","Comments (including lessons learned and possible recommendations for future improvements)"]
[null,null,null,"Quantity of waste","MRI ","Quantity of waste","MRI ","Reused or recycled ",null,"Sent to landfill","Exempt"]
[null,null,null,"Mass\n(tonnes)","%","Mass\n(tonnes)","%","On site","Off site",null,null,"Mass\n(tonnes)","tonnes per 100m2 new construction","Estimated\n£s"]
[null,"Inert",{"$f":"'Waste Forecast - Con'!D8","v":"Concrete"},{"$f":"'Waste Forecast - Con'!G8","v":0},{"$f":"'Waste Forecast - Con'!H8","v":1},{"$f":"SUM(H9:K9)","v":0},{"$f":"SUM(H9+I9)/(H9+I9+J9)","v":{"$error":"#DIV/0!"}},null,null,null,null,{"$f":"F9-D9","v":0},{"$f":"F9/L$3","v":0}]
[null,null,{"$f":"'Waste Forecast - Con'!D9","v":"Rubble & hardcore "},{"$f":"'Waste Forecast - Con'!G9","v":0},{"$f":"'Waste Forecast - Con'!H9","v":0.95},0,{"$f":"SUM(H10+I10)/(H10+I10+J10)","v":{"$error":"#DIV/0!"}},null,null,null,null,{"$f":"F10-D10","v":0},0]
[null,null,{"$f":"'Waste Forecast - Con'!D10","v":"Brick & Block work"},{"$f":"'Waste Forecast - Con'!G10","v":0},{"$f":"'Waste Forecast - Con'!H10","v":1},0,{"$f":"SUM(H11+I11)/(H11+I11+J11)","v":{"$error":"#DIV/0!"}},null,null,null,null,0,0]
[null,null,{"$f":"'Waste Forecast - Con'!D11","v":"Sub soil"},{"$f":"'Waste Forecast - Con'!G11","v":0},{"$f":"'Waste Forecast - Con'!H11","v":0.95},0,{"$f":"SUM(H12+I12)/(H12+I12+J12)","v":{"$error":"#DIV/0!"}},null,null,null,null,0,0]
[null,null,{"$f":"'Waste Forecast - Con'!D12","v":"Tiles and Ceramics  "},{"$f":"'Waste Forecast - Con'!G12","v":0},{"$f":"'Waste Forecast - Con'!H12","v":0.9},0,{"$f":"SUM(H13+I13)/(H13+I13+J13)","v":{"$error":"#DIV/0!"}},null,null,null,null,0,0]
[null,null,{"$f":"'Waste Forecast - Con'!D13","v":"Glass"},{"$f":"'Waste Forecast - Con'!G13","v":0},{"$f":"'Waste Forecast - Con'!H13","v":0.9},0,{"$f":"SUM(H14+I14)/(H14+I14+J14)","v":{"$error":"#DIV/0!"}}]
[null,null,"Subtotal",{"$f":"'Waste Forecast - Con'!G14","v":0},{"$f":"'Waste Forecast - Con'!H14","v":{"$error":"#DIV/0!"}},{"$f":"SUM(F9:F14)","v":0},{"$error":"#DIV/0!"},{"$f":"SUM(H9:H13)","v":0},0,0,0,0,0,0]
[null,"Active",{"$f":"'Waste Forecast - Con'!D15","v":"Plastics  "},{"$f":"'Waste Forecast - Con'!G15","v":0},{"$f":"'Waste Forecast - Con'!H15","v":0.75},{"$f":"SUM(H16:K16)","v":0},{"$error":"#DIV/0!"},null,null,null,null,0,0]
[null,null,{"$f":"'Waste Forecast - Con'!D16","v":"Mixed metals"},{"$f":"'Waste Forecast - Con'!G16","v":0},{"$f":"'Waste Forecast - Con'!H16","v":1},0,{"$error":"#DIV/0!"},null,null,null,null,0,0]
[null,null,{"$f":"'Waste Forecast - Con'!D17","v":"Mixed Packaging"},{"$f":"'Waste Forecast - Con'!G17","v":0},{"$f":"'Waste Forecast - Con'!H17","v":0.9},0,{"$error":"#DIV/0!"},null,null,null,null,0,0]
[null,null,{"$f":"'Waste Forecast - Con'!D18","v":"Gypsum"},{"$f":"'Waste Forecast - Con'!G18","v":0},{"$f":"'Waste Forecast - Con'!H18","v":0.9},0,{"$error":"#DIV/0!"},null,null,null,null,0,0]
[null,null,{"$f":"'Waste Forecast - Con'!D19","v":"Timber"},{"$f":"'Waste Forecast - Con'!G19","v":0},{"$f":"'Waste Forecast - Con'!H19","v":0.8},0,{"$error":"#DIV/0!"},null,null,null,null,0,0]
[null,null,{"$f":"'Waste Forecast - Con'!D20","v":"Mixed Construction Waste"},{"$f":"'Waste Forecast - Con'!G20","v":0},{"$f":"'Waste Forecast - Con'!H20","v":0.95},0,{"$error":"#DIV/0!"},null,null,null,null,0,0]
[null,null,{"$f":"'Waste Forecast - Con'!D21","v":"Top soil"},{"$f":"'Waste Forecast - Con'!G21","v":0},{"$f":"'Waste Forecast - Con'!H21","v":0.95},0,{"$error":"#DIV/0!"},null,null,null,null,0,0]
[null,null,{"$f":"'Waste Forecast - Con'!D22","v":"Green waste"},{"$f":"'Waste Forecast - Con'!G22","v":0},{"$f":"'Waste Forecast - Con'!H22","v":0.9},0,{"$error":"#DIV/0!"},null,null,null,null,0,0]
[null,null,{"$f":"'Waste Forecast - Con'!D23","v":"Canteen"},{"$f":"'Waste Forecast - Con'!G23","v":0},{"$f":"'Waste Forecast - Con'!H23","v":0.9},0,{"$error":"#DIV/0!"},null,null,null,null,0,0]
[null,null,{"$f":"'Waste Forecast - Con'!D24","v":"Office card and paper  waste"},{"$f":"'Waste Forecast - Con'!G24","v":0},{"$f":"'Waste Forecast - Con'!H24","v":0.9},0,{"$error":"#DIV/0!"},null,null,null,null,{"$f":"F25-D25","v":0},0]
[null,null,{"$f":"'Waste Forecast - Con'!D25","v":"Liquids  "},{"$f":"'Waste Forecast - Con'!G25","v":0},{"$f":"'Waste Forecast - Con'!H25","v":0},0,{"$error":"#DIV/0!"},null,null,null,null,0,0]
[null,null,{"$f":"'Waste Forecast - Con'!D26","v":"Floor Coverings"},{"$f":"'Waste Forecast - Con'!G26","v":0},{"$f":"'Waste Forecast - Con'!H26","v":0.9},0,{"$error":"#DIV/0!"},null,null,null,null,0,0]
[null,null,"Subtotal",{"$f":"'Waste Forecast - Con'!G27","v":0},{"$f":"'Waste Forecast - Con'!H27","v":{"$error":"#DIV/0!"}},{"$f":"SUM(F16:F26)","v":0},{"$error":"#DIV/0!"},{"$f":"SUM(H16:H26)","v":0},0,0,0,0,0,0]
[null,null,"Non-Hazardous Subtotal",{"$f":"'Waste Forecast - Con'!G28","v":0},{"$f":"'Waste Forecast - Con'!H28","v":{"$error":"#DIV/0!"}},{"$f":"SUM(F28,F15)","v":0},{"$error":"#DIV/0!"},{"$f":"SUM(H28,H15)","v":0},0,0,0,0,0,0]
[null,"Hazardous",{"$f":"'Waste Forecast - Con'!D29","v":"Contaminated Land"},{"$f":"'Waste Forecast - Con'!G29","v":0},{"$f":"'Waste Forecast - Con'!H29","v":0},{"$f":"SUM(H30:K30)","v":0},{"$error":"#DIV/0!"},null,null,null,null,0,0]
[null,null,{"$f":"'Waste Forecast - Con'!D30","v":"Oils  "},{"$f":"'Waste Forecast - Con'!G30","v":0},{"$f":"'Waste Forecast - Con'!H30","v":0},0,{"$error":"#DIV/0!"},null,null,null,null,0,0]
[null,null,{"$f":"'Waste Forecast - Con'!D31","v":"Asphalt and tar  "},{"$f":"'Waste Forecast - Con'!G31","v":0},{"$f":"'Waste Forecast - Con'!H31","v":0},0,{"$error":"#DIV/0!"},null,null,null,null,0,0]
[null,null,{"$f":"'Waste Forecast - Con'!D32","v":"Paint tins, mastic etc"},{"$f":"'Waste Forecast - Con'!G32","v":0},{"$f":"'Waste Forecast - Con'!H32","v":0.7},0,{"$error":"#DIV/0!"},null,null,null,null,0,0]
[null,null,{"$f":"'Waste Forecast - Con'!D33","v":"Cementitious Binders "},{"$f":"'Waste Forecast - Con'!G33","v":0},{"$f":"'Waste Forecast - Con'!H33","v":0},0,{"$error":"#DIV/0!"},null,null,null,null,0,0]
[null,null,{"$f":"'Waste Forecast - Con'!D34","v":"Other"},{"$f":"'Waste Forecast - Con'!G34","v":0},{"$f":"'Waste Forecast - Con'!H34","v":0},0,{"$error":"#DIV/0!"},null,null,null,null,0,0]
[null,null,"Subtotal",{"$f":"'Waste Forecast - Con'!G35","v":0},{"$f":"'Waste Forecast - Con'!H35","v":{"$error":"#DIV/0!"}},{"$f":"SUM(F30:F35)","v":0},{"$error":"#DIV/0!"},{"$f":"SUM(H30:H35)","v":0},0,0,0,0,0,0]
[null,null,"TOTALS",{"$f":"'Waste Forecast - Con'!G36","v":0},{"$f":"'Waste Forecast - Con'!H36","v":{"$error":"#DIV/0!"}},{"$f":"SUM(F15+F28+F36)","v":0},{"$error":"#DIV/0!"},{"$f":"SUM(H15+H28+H36)","v":0},0,0,0,0,0,0]

{"sheet":"Actual Waste - ALL","index":12,"n_rows":17,"n_cols":13,"rows_kept":17,"cut":false,"hidden":false,"merged":[[13,1,15,1],[3,1,3,12],[4,1,6,1],[7,1,9,1],[10,1,12,1]]}
["swmp"]
[]
[null,"Summary of All Waste (Estimated and Actual)",null,null,null,null,null,null,null,null,null,"Last Updated:",{"$f":"MAX(Review!C7:C200)","v":"2015-08-05"}]
[null,"This spreadsheet summarises estimated and actual waste quantities from demolition, excavation and construction."]
[null,"Project \nActivity",null,"Estimated",null,null,null,null,"Actual"]
[null,null,null,"Total quantity of waste",null,"Total waste reused / recycled","Percentage waste reused / recycled","Performance (+/-)","Total quantity of waste",null,"Total waste reused / recycled","Percentage waste reused / recycled","Savings \n(+/-)"]
[null,null,null,"Mass\n(tonnes)","Click to amend waste forecasts","Mass \n(tonnes)","%","Mass\n(tonnes)","Mass\n(tonnes)","Click to amend actual waste data","Mass \n(tonnes)","%"]
[null,"Demolition","Non-Hazardous",{"$f":"'Actual Waste - Dem'!D26","v":2819.7179999999998},null,{"$f":"'Waste Forecast - Dem'!L25","v":2687.4611999999997},{"$f":"F8/D8","v":0.95309573510542545},{"$f":"I8-D8","v":-2819.7179999999998},{"$f":"'Actual Waste - Dem'!F26","v":0},null,{"$f":"SUM('Actual Waste - Dem'!H26:I26)","v":0},{"$f":"K8/I8","v":{"$error":"#DIV/0!"}},{"$f":"'Actual Waste - Dem'!M26","v":1090}]
[null,null,"Hazardous",{"$f":"'Actual Waste - Dem'!D30","v":0},null,{"$f":"'Waste Forecast - Dem'!L29","v":0},{"$f":"F9/D9","v":{"$error":"#DIV/0!"}},{"$f":"I9-D9","v":0},{"$f":"'Actual Waste - Dem'!F30","v":0},null,{"$f":"SUM('Actual Waste - Dem'!H30:I30)","v":0},{"$f":"K9/I9","v":{"$error":"#DIV/0!"}},{"$f":"'Actual Waste - Dem'!M30","v":0}]
[null,null,"Total",{"$f":"SUM(D8:D9)","v":2819.7179999999998},null,{"$f":"SUM(F8:F9)","v":2687.4611999999997},0.95309573510542545,-2819.7179999999998,{"$f":"SUM(I8:I9)","v":0},null,{"$f":"SUM(K8:K9)","v":0},{"$error":"#DIV/0!"},{"$f":"SUM(M8:M9)","v":1090}]
[null,"Excavation","Non-Hazardous",{"$f":"'Actual Waste - Exc'!D17","v":0},null,{"$f":"'Waste Forecast - Exc'!L16","v":0},{"$error":"#DIV/0!"},0,{"$f":"'Actual Waste - Exc'!F17","v":0},null,{"$f":"SUM('Actual Waste - Exc'!H17:I17)","v":0},{"$error":"#DIV/0!"},{"$f":"'Actual Waste - Exc'!M17","v":0}]
[null,null,"Hazardous",{"$f":"'Actual Waste - Exc'!D22","v":0},null,{"$f":"'Waste Forecast - Exc'!L21","v":0},{"$error":"#DIV/0!"},0,{"$f":"'Actual Waste - Exc'!F22","v":0},null,{"$f":"SUM('Actual Waste - Exc'!H22:I22)","v":0},{"$error":"#DIV/0!"},{"$f":"'Actual Waste - Exc'!M22","v":0}]
[null,null,"Total",{"$f":"SUM(D11:D12)","v":0},null,{"$f":"SUM(F11:F12)","v":0},{"$error":"#DIV/0!"},0,{"$f":"SUM(I11:I12)","v":0},null,{"$f":"SUM(K11:K12)","v":0},{"$error":"#DIV/0!"},{"$f":"SUM(M11:M12)","v":0}]
[null,"Construction","Non-Hazardous",{"$f":"'Actual Waste - Con'!D29","v":0},null,{"$f":"'Waste Forecast - Con'!M28","v":0},{"$error":"#DIV/0!"},0,{"$f":"'Actual Waste - Con'!F29","v":0},null,{"$f":"SUM('Actual Waste - Con'!H29:I29)","v":0},{"$error":"#DIV/0!"},{"$f":"'Actual Waste - Con'!N29","v":0}]
[null,null,"Hazardous",{"$f":"'Actual Waste - Con'!D36","v":0},null,{"$f":"'Waste Forecast - Con'!M35","v":0},{"$error":"#DIV/0!"},0,{"$f":"'Actual Waste - Con'!F36","v":0},null,{"$f":"SUM('Actual Waste - Con'!H36:I36)","v":0},{"$error":"#DIV/0!"},{"$f":"'Actual Waste - Con'!N36","v":0}]
[null,null,"Total",{"$f":"SUM(D14:D15)","v":0},null,{"$f":"SUM(F14:F15)","v":0},{"$error":"#DIV/0!"},0,{"$f":"SUM(I14:I15)","v":0},null,{"$f":"SUM(K14:K15)","v":0},{"$error":"#DIV/0!"},{"$f":"SUM(M14:M15)","v":0}]
[null,"TOTAL",null,{"$f":"SUM(D10,D13,D16)","v":2819.7179999999998},null,{"$f":"SUM(F10,F13,F16)","v":2687.4611999999997},0.95309573510542545,{"$f":"SUM(H10,H13,H16)","v":-2819.7179999999998},{"$f":"SUM(I10,I13,I16)","v":0},null,{"$f":"SUM(K10,K13,K16)","v":0},{"$f":"K17/I17","v":{"$error":"#DIV/0!"}},{"$f":"SUM(M10,M13,M16)","v":1090}]

{"sheet":"References","index":13,"n_rows":62,"n_cols":10,"rows_kept":62,"cut":false,"hidden":false,"merged":[[7,1,7,12],[8,1,8,2],[8,3,8,5],[11,1,11,12],[26,1,26,12],[8,6,8,8],[8,9,8,11],[48,1,48,12],[49,1,49,12],[27,1,27,12],[12,1,12,12],[13,1,13,12],[22,1,22,12],[18,1,18,12],[16,1,16,12],[17,1,17,12],[19,1,19,12],[23,1,23,12],[34,1,34,12],[28,1,28,12],[31,1,31,12],[32,1,32,12],[33,1,33,12],[61,1,61,12],[56,1,56,12],[57,1,57,12],[58,1,58,12],[59,1,59,12],[60,1,60,12],[52,1,52,12],[53,1,53,12],[54,1,54,12],[55,1,55,12],[37,1,37,12],[38,1,38,12],[39,1,39,12],[40,1,40,12],[50,1,50,12],[42,1,42,12],[43,1,43,12],[44,1,44,12],[45,1,45,12],[51,1,51,12],[46,1,46,12],[47,1,47,12]]}
["swmp"]
[]
[null,"This page contains references to legislation and sources of further information and guidance."]
[null,null,"Legislation"]
[null,null,"Further Information"]
[]
[null,"Legislation"]
[null,"There are several pieces of legislation and regulation that impose legal duties on Skanska UK and our trade contractors for management of waste. A summary of the key acts are listed below: "]
[null,"Full texts can be sourced from",null," http://www.statutelaw.gov.uk/ ",null,null,"and the Skanska legal register at",null,null," http://registry.enviro-suite.com/ "]
[]
[null,"Environmental Protection Act 1990 "]
[null,"•          Meet the requirement of the Duty of Care (section 34) if producing, carrying, keeping, treating and/or disposing of controlled waste. If we break the law we can be fined unlimited amount. "]
[null,"•          Only transfer controlled waste to an authorised person i.e. the local authority, registered carrier or licensed disposer. "]
[null,"•          Check with Environment Agency if carriers certificate / waste management licence is valid and that they are allowed to take your type and volume of waste (section 33). "]
[]
[null,"Environmental Permitting (England  and Wales) Regulations 2010"]
[null,"•          An environmental Permit (waste management licence) is required for recycling activities, bulk storage at transfer station, disposal of waste to landfill, incineration and land treatment of waste.  A Waste Management license is also required if more than 50,000 tonnes of waste is stored on site but exemptions apply if the waste will be reused within the site."]
[null,"•          Activities that requires registered exemptions are for use of waste (building wastes of various quanities up to 50,000 tonnes, Treatment of Waste (up to 200tonnes eg through a crusher on site) Storage of waste 9for use elswher up to 100 tonnes) and Disposal of Waste.  "]
[null,"•          A waste management licence would be required if waste from another site is taken to be stored on another site for longer than 6 months."]
[null,"•          Contact the Project Environmental Advisor if a Permit (Waste Management licence) or an exemption is required."]
[]
[null,"Landfill Directive 2002 (Amended) 2004"]
[null,"•          Segregate waste into HAZARDOUS, NON HAZARDOUS or INERT as landfill sites are now classified into these three categories."]
[null,"•          Check with your waste contractor or directly with the landfill where your waste is taken. Waste has to meet certain criteria (Waste Acceptance Criteria) when disposed to landfill. "]
[]
[null,"Hazardous Waste Regulations 2005"]
[null,"•          Register with Environment Agency before the project / office starts producing hazardous waste. "]
[null,"•          Once registered with Environment Agency, put the premises code on the consignment note every time hazardous waste is removed from the project."]
[null,"•          Inspect the consignment note to ensure it has been completed correctly. For further details see Consignment Note under Guidance."]
[]
[null,"The Site Waste Management Plans Regulations 2008 ",null,null,null,"NB Revoked on 1st December 2013"]
[null,"•          identify the different types of waste that will be produced by the project, and note any changes in the design and materials specification that seek to minimise this waste "]
[null,"•          consider how to re-use, recycle or recover the different wastes produced by the project "]
[null,"•          require the construction company to demonstrate that it is complying with the duty of care regime "]
[null,"•          record the quantities of waste produced"]
[]
[null,"Waste Regulations 2011 "]
[null,"•          Implements revised EU Waste Framework"]
[null,"•          requirement to confirm compliance with waste hierarchy on WTNs "]
[null,"•          require the Standard Industry Classification to be indicated on WTN "]
[null,"•         Amends Hazardous waste controls and excludes some wastes from waste control. - provision to require segregation from 2015 for paper, metal, glasss and plastic"]
[]
[null,"Useful sources of further information & guidance"]
[null,"There are a numerous guidance documents available for specific areas of waste management and minimisation for all areas of the construction industry. They include:"]
[]
[null,"WRAP’s Efficient Use of Materials in Regeneration projects– Guidance for delivering cost effective and sustainable design and construction practices through materials resource efficiency. "]
[null,"www.wrap.org.uk/construction "]
[]
[null,"The ICE Demolition Protocol – Describes how demolition and new build design processes are managed to ensure that resource efficiency is achieved. Assists the designer and client in maximising the use of existing building elements."]
[null,"www.aggregain.org.uk/demolition/index "]
[]
[null,"SMARTWaste – A series of tools to help companies monitor and assess their waste. The information can be useful for designers and architects to review design strategies and minimise waste arisings. "]
[null,"www.smartwaste.co.uk "]
[]
[null,"Green Guide to Specification – Provides guidance on the relative environmental lifecycle impacts of different elemental specifications for roofs, walls, floors etc. "]
[null,"www.bre.co.uk/greenguide/page.jsp?id=499  "]
[]
[null,"Design for Deconstruction: Principles of Design to Facilitate Reuse and Recycling (CIRIA, 2004) – Aims to maximise reuse of components and recycling of materials when buildings are wholly or partially deconstructed or demolished. Provides information on the principles and strategies of design for new construction works, to facilitate their eventual efficient, safe and economic deconstruction so as to optimise reuse and recycling. "]
[null,"www.ciria.org.uk "]
[]
[null,"WRAP On-site guidance - These guides are designed to be of practical benefit to construction sites of all sizes in helping to manage and develop good waste management practice on-site."]
[null,"http://www.wrap.org.uk/construction/construction_waste_minimisation_and_management/onsite/site_how_to.html  "]

{"sheet":"Review","index":14,"n_rows":7,"n_cols":13,"rows_kept":7,"cut":false,"hidden":false,"merged":[[6,12,6,13],[7,12,7,13],[24,3,24,4],[25,3,25,4],[10,3,10,4],[11,3,11,4],[12,3,12,4],[13,3,13,4],[14,3,14,4],[15,3,15,4],[16,3,16,4],[17,3,17,4],[18,3,18,4],[19,3,19,4],[20,3,20,4],[21,3,21,4],[22,3,22,4],[23,3,23,4],[20,5,20,6],[23,7,23,11],[24,7,24,11],[25,7,25,11],[16,12,16,13],[17,12,17,13],[40,3,40,4],[41,3,41,4],[26,3,26,4],[27,3,27,4],[28,3,28,4],[29,3,29,4],[30,3,30,4],[31,3,31,4],[32,3,32,4],[33,3,33,4],[34,3,34,4],[35,3,35,4],[36,3,36,4],[37,3,37,4],[38,3,38,4],[39,3,39,4],[56,3,56,4],[57,3,57,4],[42,3,42,4],[43,3,43,4],[44,3,44,4],[45,3,45,4],[46,3,46,4],[47,3,47,4],[48,3,48,4],[49,3,49,4],[50,3,50,4],[51,3,51,4],[52,3,52,4],[53,3,53,4],[54,3,54,4],[55,3,55,4],[86,3,86,4],[87,3,87,4],[72,3,72,4],[73,3,73,4],[58,3,58,4],[59,3,59,4],[60,3,60,4],[61,3,61,4],[62,3,62,4],[63,3,63,4],[64,3,64,4],[65,3,65,4],[66,3,66,4],[67,3,67,4],[68,3,68,4],[69,3,69,4],[70,3,70,4],[71,3,71,4],[77,3,77,4],[78,3,78,4],[79,3,79,4],[80,3,80,4],[81,3,81,4],[82,3,82,4],[83,3,83,4],[84,3,84,4],[85,3,85,4],[17,5,17,6],[18,5,18,6],[19,5,19,6],[104,3,104,4],[105,3,105,4],[90,3,90,4],[91,3,91,4],[92,3,92,4],[93,3,93,4],[94,3,94,4],[95,3,95,4],[96,3,96,4],[97,3,97,4],[98,3,98,4],[99,3,99,4],[100,3,100,4],[101,3,101,4],[102,3,102,4],[103,3,103,4],[88,3,88,4],[89,3,89,4],[74,3,74,4],[75,3,75,4],[76,3,76,4],[41,5,41,6],[42,5,42,6],[43,5,43,6],[110,3,110,4],[111,3,111,4],[112,3,112,4],[52,5,52,6],[75,5,75,6],[66,5,66,6],[67,5,67,6],[68,5,68,6],[69,5,69,6],[70,5,70,6],[76,5,76,6],[77,5,77,6],[53,5,53,6],[54,5,54,6],[60,5,60,6],[61,5,61,6],[62,5,62,6],[63,5,63,6],[6,5,6,6],[7,5,7,6],[8,5,8,6],[106,3,106,4],[107,3,107,4],[108,3,108,4],[109,3,109,4],[10,5,10,6],[11,5,11,6],[12,5,12,6],[21,5,21,6],[13,5,13,6],[14,5,14,6],[15,5,15,6],[16,5,16,6],[22,5,22,6],[23,5,23,6],[24,5,24,6],[39,5,39,6],[40,5,40,6],[25,5,25,6],[26,5,26,6],[27,5,27,6],[28,5,28,6],[29,5,29,6],[30,5,30,6],[31,5,31,6],[32,5,32,6],[33,5,33,6],[34,5,34,6],[35,5,35,6],[36,5,36,6],[37,5,37,6],[38,5,38,6],[44,5,44,6],[45,5,45,6],[46,5,46,6],[47,5,47,6],[48,5,48,6],[49,5,49,6],[50,5,50,6],[51,5,51,6],[64,5,64,6],[65,5,65,6],[73,5,73,6],[57,5,57,6],[58,5,58,6],[59,5,59,6],[55,5,55,6],[56,5,56,6],[78,5,78,6],[79,5,79,6],[80,5,80,6],[71,5,71,6],[72,5,72,6],[103,5,103,6],[104,5,104,6],[95,5,95,6],[96,5,96,6],[81,5,81,6],[82,5,82,6],[83,5,83,6],[84,5,84,6],[85,5,85,6],[86,5,86,6],[97,5,97,6],[98,5,98,6],[99,5,99,6],[100,5,100,6],[101,5,101,6],[102,5,102,6],[87,5,87,6],[88,5,88,6],[74,5,74,6],[107,5,107,6],[108,5,108,6],[109,5,109,6],[110,5,110,6],[111,5,111,6],[112,5,112,6],[16,7,16,11],[17,7,17,11],[105,5,105,6],[106,5,106,6],[89,5,89,6],[90,5,90,6],[91,5,91,6],[92,5,92,6],[93,5,93,6],[94,5,94,6],[32,7,32,11],[33,7,33,11],[18,7,18,11],[19,7,19,11],[20,7,20,11],[21,7,21,11],[22,7,22,11],[26,7,26,11],[27,7,27,11],[28,7,28,11],[29,7,29,11],[30,7,30,11],[31,7,31,11],[48,7,48,11],[49,7,49,11],[34,7,34,11],[35,7,35,11],[36,7,36,11],[37,7,37,11],[38,7,38,11],[39,7,39,11],[40,7,40,11],[41,7,41,11],[42,7,42,11],[43,7,43,11],[44,7,44,11],[45,7,45,11],[46,7,46,11],[47,7,47,11],[64,7,64,11],[65,7,65,11],[50,7,50,11],[51,7,51,11],[52,7,52,11],[53,7,53,11],[54,7,54,11],[55,7,55,11],[56,7,56,11],[57,7,57,11],[58,7,58,11],[59,7,59,11],[60,7,60,11],[61,7,61,11],[62,7,62,11],[63,7,63,11],[80,7,80,11],[81,7,81,11],[66,7,66,11],[67,7,67,11],[68,7,68,11],[69,7,69,11],[70,7,70,11],[71,7,71,11],[72,7,72,11],[73,7,73,11],[74,7,74,11],[75,7,75,11],[76,7,76,11],[77,7,77,11],[78,7,78,11],[79,7,79,11],[96,7,96,11],[97,7,97,11],[82,7,82,11],[83,7,83,11],[84,7,84,11],[85,7,85,11],[86,7,86,11],[87,7,87,11],[88,7,88,11],[89,7,89,11],[90,7,90,11],[91,7,91,11],[92,7,92,11],[93,7,93,11],[94,7,94,11],[95,7,95,11],[98,7,98,11],[99,7,99,11],[112,7,112,11],[113,7,113,11],[106,7,106,11],[107,7,107,11],[108,7,108,11],[109,7,109,11],[100,7,100,11],[101,7,101,11],[110,7,110,11],[111,7,111,11],[102,7,102,11],[103,7,103,11],[104,7,104,11],[105,7,105,11],[2,1,2,2],[1,1,1,2],[6,7,6,11],[7,7,7,11],[6,3,6,4],[7,3,7,4],[14,7,14,11],[15,7,15,11],[8,12,8,13],[9,12,9,13],[8,7,8,11],[9,7,9,11],[10,7,10,11],[11,7,11,11],[12,7,12,11],[13,7,13,11],[8,3,8,4],[9,3,9,4],[5,12,5,13],[4,3,4,4],[5,7,5,11],[5,3,5,4],[5,5,5,6],[9,5,9,6],[10,12,10,13],[11,12,11,13],[12,12,12,13],[13,12,13,13],[14,12,14,13],[15,12,15,13],[32,12,32,13],[33,12,33,13],[18,12,18,13],[19,12,19,13],[20,12,20,13],[21,12,21,13],[22,12,22,13],[23,12,23,13],[24,12,24,13],[25,12,25,13],[26,12,26,13],[27,12,27,13],[28,12,28,13],[29,12,29,13],[30,12,30,13],[31,12,31,13],[48,12,48,13],[49,12,49,13],[34,12,34,13],[35,12,35,13],[36,12,36,13],[37,12,37,13],[38,12,38,13],[39,12,39,13],[40,12,40,13],[41,12,41,13],[42,12,42,13],[43,12,43,13],[44,12,44,13],[45,12,45,13],[46,12,46,13],[47,12,47,13],[64,12,64,13],[65,12,65,13],[50,12,50,13],[51,12,51,13],[52,12,52,13],[53,12,53,13],[54,12,54,13],[55,12,55,13],[56,12,56,13],[57,12,57,13],[58,12,58,13],[59,12,59,13],[60,12,60,13],[61,12,61,13],[62,12,62,13],[63,12,63,13],[80,12,80,13],[81,12,81,13],[66,12,66,13],[67,12,67,13],[68,12,68,13],[69,12,69,13],[70,12,70,13],[71,12,71,13],[72,12,72,13],[73,12,73,13],[74,12,74,13],[75,12,75,13],[76,12,76,13],[77,12,77,13],[78,12,78,13],[79,12,79,13],[96,12,96,13],[97,12,97,13],[82,12,82,13],[83,12,83,13],[84,12,84,13],[85,12,85,13],[86,12,86,13],[87,12,87,13],[88,12,88,13],[89,12,89,13],[90,12,90,13],[91,12,91,13],[92,12,92,13],[93,12,93,13],[94,12,94,13],[95,12,95,13],[112,12,112,13],[113,12,113,13],[98,12,98,13],[99,12,99,13],[100,12,100,13],[101,12,101,13],[102,12,102,13],[103,12,103,13],[104,12,104,13],[105,12,105,13],[106,12,106,13],[107,12,107,13],[108,12,108,13],[109,12,109,13],[110,12,110,13],[111,12,111,13]]}
["swmp"]
[]
[null,"Ongoing Review"]
[null,"This plan should be reviewed as required by any changes to the project and as a minimum every 6 months "]
[]
[null,"Version","Date","Project Stage",null,"Reviewed By",null,"Summary / Actions carried out",null,null,null,null,"Authorised By"]
[null,1,"2015-08-05","PCSA",null,"E Stewart",null,"First revision",null,null,null,null,"Paul Roberts"]